bitfinex/quotes_SOLUSD_20260304
["timestamp","ask_amount","ask_price","bid_price","bid_amount"]
[1772620704065,11.08156028,90.24,90.183,4.05538994]
[1772620704261,17.99815381,90.245,90.188,4.05538994]
[1772620704466,17.99815381,90.245,90.188,4.33971308]
[1772620705766,4.47471406,90.244,90.188,4.33971308]
[1772620705961,5.04827069,90.23,90.179,4.05538994]
[1772620706168,4.7590372,90.217,90.17,4.05538994]
[1772620706361,4.7590372,90.217,90.16,4.05538994]
[1772620706666,4.47471406,90.209,90.16,4.05538994]
[1772620708166,4.47471406,90.207,90.162,4.05538994]
[1772620708678,11.08479964,90.214,90.162,4.05538994]
[1772620708964,4.47471406,90.229,90.172,4.05538994]
[1772620710557,11.08303409,90.228,90.182,4.05538994]
[1772620711071,27.70388951,90.241,90.182,4.05538994]
[1772620711072,11.08192869,90.237,90.182,4.05538994]
[1772620711653,3.12300002,90.243,90.202,4.05538994]
[1772620712758,11.07873658,90.263,90.212,0.28432314]
[1772620712959,4.7590372,90.259,90.204,4.05538994]
[1772620713270,4.47471406,90.259,90.204,4.05538994]
[1772620714167,38.77557803,90.263,90.212,4.05538994]
[1772620714168,4.47471406,90.262,90.212,4.05538994]
[1772620714770,38.77557803,90.263,90.214,4.05538994]
[1772620714771,4.47471406,90.26,90.214,4.05538994]
[1772620714967,11.07898206,90.261,90.214,4.05538994]
[1772620715169,4.47471406,90.288,90.222,4.05538994]
[1772620715469,4.47471406,90.288,90.232,4.05538994]
[1772620715872,38.76441205,90.289,90.232,4.05538994]
[1772620715873,4.47471406,90.286,90.232,4.05538994]
[1772620716769,15.55075105,90.285,90.234,4.05538994]
[1772620716950,4.47471406,90.284,90.234,4.05538994]
[1772620717754,11.07628235,90.283,90.235,38.78761012]
[1772620717948,4.47471406,90.307,90.244,4.05538994]
[1772620718169,4.47471406,90.307,90.246,4.33971308]
[1772620720965,4.47471406,90.305,90.248,4.33971308]
[1772620722582,4.47471406,90.305,90.247,27.70175185]
[1772620723080,4.47471406,90.303,90.247,38.78245259]
[1772620723254,4.47471406,90.303,90.247,101.18245259]
[1772620724170,4.47471406,90.301,90.24,4.82477569]
[1772620724371,4.47471406,90.31,90.244,8.51860971]
[1772620724579,4.47471406,90.319,90.245,4.33971308]
[1772620724777,4.47471406,90.319,90.269,4.05538994]
[1772620725586,11.07144252,90.323,90.269,4.05538994]
[1772620726060,27.67478208,90.335,90.274,4.05538994]
[1772620726061,4.47471406,90.327,90.274,4.05538994]
[1772620728465,4.20950065,90.339,90.278,4.13075558]
[1772620728661,4.20950065,90.335,90.278,7.8245896]
[1772620728865,4.20950065,90.335,90.282,4.13075558]
[1772620729262,0.1,90.34,90.288,3.69383402]
[1772620729462,0.1,90.34,90.298,4.13075558]
[1772620729788,4.20950065,90.338,90.288,4.13075558]
[1772620730395,4.20950065,90.336,90.278,4.13075558]
[1772620730683,4.20950065,90.319,90.271,11.07765678]
[1772620731571,4.20950065,90.313,90.264,11.07861384]
[1772620732586,4.49382379,90.309,90.257,11.07947306]
[1772620732882,5.04827069,90.29,90.247,11.08070074]
[1772620733083,5.04827069,90.29,90.212,55.42476433]
[1772620733084,4.20950065,90.289,90.226,4.13075558]
[1772620733275,0.28432314,90.288,90.233,27.70603802]
[1772620733479,4.20950065,90.283,90.233,27.70603802]
[1772620734768,4.20950065,90.281,90.233,27.70603802]
[1772620734966,4.20950065,90.281,90.227,11.08315692]
[1772620735163,4.20950065,90.279,90.227,11.08315692]
[1772620736466,4.20950065,90.269,90.221,11.08377773]
[1772620736663,4.20950065,90.259,90.21,11.08524553]
[1772620736863,5.04827069,90.26,90.21,11.08524553]
[1772620736864,4.20950065,90.257,90.21,11.08524553]
[1772620737688,4.20950065,90.257,90.21,15.21600111]
[1772620737890,4.20950065,90.257,90.211,4.13075558]
[1772620738268,4.20950065,90.268,90.216,0.28432314]
[1772620738473,4.20950065,90.268,90.219,4.13075558]
[1772620739681,4.20950065,90.268,90.221,4.13075558]
[1772620740592,15.28660888,90.277,90.229,4.13075558]
[1772620740993,4.20950065,90.277,90.229,4.13075558]
[1772620741189,4.20950065,90.285,90.239,4.13075558]
[1772620741895,4.20950065,90.285,90.228,3.69383402]
[1772620741896,4.20950065,90.283,90.241,4.13075558]
[1772620742296,4.20950065,90.283,90.24,11.08156028]
[1772620743597,4.20950065,90.273,90.219,15.21489528]
[1772620743795,4.20950065,90.259,90.221,11.08389399]
[1772620744474,4.20950065,90.259,90.222,4.13075558]
[1772620745996,4.20950065,90.257,90.223,11.08364829]
[1772620746694,4.20950065,90.257,90.224,4.13075558]
[1772620746901,4.20950065,90.288,90.224,4.13075558]
[1772620747193,4.20950065,90.282,90.224,4.13075558]
[1772620747396,4.20950065,90.282,90.228,4.13075558]
[1772620747600,4.20950065,90.282,90.238,4.13075558]
[1772620747892,4.20950065,90.282,90.239,4.13075558]
[1772620748199,4.20950065,90.282,90.241,4.13075558]
[1772620748496,11.07609687,90.285,90.241,4.13075558]
[1772620748700,11.07609687,90.285,90.24,38.78546098]
[1772620748701,4.20950065,90.291,90.246,5.10909883]
[1772620748896,4.20950065,90.289,90.24,38.78546098]
[1772620749104,4.20950065,90.289,90.241,4.13075558]
[1772620749598,4.20950065,90.289,90.24,11.08156028]
[1772620750088,4.20950065,90.287,90.234,4.13075558]
[1772620751277,4.20950065,90.285,90.236,4.13075558]
[1772620752176,4.20950065,90.283,90.238,4.13075558]
[1772620752983,4.20950065,90.283,90.237,11.08192869]
[1772620754294,4.20950065,90.281,90.237,11.08192869]
[1772620755699,4.20950065,90.277,90.22,11.08401684]
[1772620755876,4.20950065,90.269,90.22,11.08401684]
[1772620756307,4.20950065,90.267,90.215,11.08463115]
[1772620756592,4.20950065,90.259,90.215,11.08463115]
[1772620757097,4.20950065,90.259,90.188,4.82477569]
[1772620757098,4.20950065,90.259,90.209,26.96428978]
[1772620757508,4.20950065,90.249,90.209,15.87902305]
[1772620757797,4.20950065,90.249,90.211,4.13075558]
[1772620759180,15.4374543,90.248,90.213,4.18858364]
[1772620759693,11.07824564,90.267,90.215,4.18858364]
[1772620759897,11.07800019,90.269,90.219,4.18858364]
[1772620760502,4.35687634,90.268,90.219,4.18858364]
[1772620761396,4.35687634,90.266,90.221,4.18858364]
[1772620763495,11.0770185,90.277,90.229,4.08355486]
[1772620763679,5.05237063,90.31,90.222,38.79319899]
[1772620763680,11.0755463,90.289,90.237,4.08355486]
[1772620763881,4.27900214,90.29,90.241,4.08355486]
[1772620764191,4.27900214,90.29,90.249,4.08355486]
[1772620764786,11.07284826,90.311,90.255,4.08355486]
[1772620764991,11.07284826,90.311,90.258,4.22571643]
[1772620765613,39.02728021,90.339,90.26,4.08355486]
[1772620765817,38.74295707,90.339,90.266,4.08355486]
[1772620766109,38.74295707,90.339,90.278,4.08355486]
[1772620766687,4.27900214,90.338,90.278,4.08355486]
[1772620767125,0.1,90.34,90.277,4.82477569]
[1772620767126,4.27900214,90.336,90.28,4.08355486]
[1772620768492,4.27900214,90.334,90.28,4.08355486]
[1772620768693,4.27900214,90.324,90.273,11.0774495]
[1772620769012,4.27900214,90.322,90.273,11.0774495]
[1772620769810,4.27900214,90.32,90.273,11.0774495]
[1772620770050,4.27900214,90.32,90.274,4.08355486]
[1772620771904,4.27900214,90.318,90.276,4.08355486]
[1772620773911,4.27900214,90.316,90.278,4.08355486]
[1772620775002,11.07064176,90.329,90.281,4.08355486]
[1772620775714,4.27900214,90.328,90.281,4.08355486]
[1772620775916,4.27900214,90.326,90.283,4.08355486]
[1772620777197,0.28432314,90.323,90.272,11.077585]
[1772620777415,4.27900214,90.319,90.273,4.08355486]
[1772620778319,15.35099221,90.318,90.275,4.08355486]
[1772620778898,4.27900214,90.317,90.275,4.08355486]
[1772620779098,11.07199007,90.318,90.275,4.08355486]
[1772620780219,4.27900214,90.319,90.277,4.08355486]
[1772620780616,4.27900214,90.319,90.271,11.07771182]
[1772620780803,4.27900214,90.319,90.272,4.08355486]
[1772620782315,4.27900214,90.317,90.274,4.08355486]
[1772620783404,4.27900214,90.317,90.276,4.08355486]
[1772620784821,11.07076432,90.328,90.279,4.08355486]
[1772620785000,4.27900214,90.327,90.279,4.08355486]
[1772620785201,38.74767513,90.328,90.275,62.4]
[1772620785202,4.27900214,90.325,90.275,62.4]
[1772620785402,4.27900214,90.299,90.247,27.70165175]
[1772620785602,4.27900214,90.289,90.239,4.08355486]
[1772620786614,94.10149675,90.328,90.23,3.69383402]
[1772620786615,4.56332528,90.307,90.241,4.08355486]
[1772620787025,4.27900214,90.307,90.243,3.69383402]
[1772620787225,4.27900214,90.307,90.24,38.78546098]
[1772620787226,4.27900214,90.307,90.248,4.22571643]
[1772620787430,4.27900214,90.307,90.25,4.08355486]
[1772620787726,4.27900214,90.307,90.249,4.96693726]
[1772620787727,4.27900214,90.307,90.258,4.22571643]
[1772620788107,4.27900214,90.307,90.258,4.08355486]
[1772620788821,38.75625636,90.308,90.26,4.23494251]
[1772620788822,4.22196515,90.305,90.26,4.23494251]
[1772620790219,4.22196515,90.316,90.26,4.23494251]
[1772620791225,4.22196515,90.314,90.262,4.23494251]
[1772620792020,11.07235785,90.315,90.262,4.23494251]
[1772620793036,38.75325249,90.315,90.262,4.23494251]
[1772620793334,4.22196515,90.315,90.264,4.23494251]
[1772620795016,4.22196515,90.313,90.269,4.23494251]
[1772620798042,4.22196515,90.311,90.271,4.23494251]
[1772620798540,4.22196515,90.311,90.273,4.23494251]
[1772620799642,0.1,90.34,90.273,4.23494251]
[1772620799643,4.22196515,90.32,90.273,4.23494251]
[1772620800337,4.22196515,90.318,90.275,4.23494251]
[1772620800520,11.07126414,90.324,90.278,4.23494251]
[1772620800724,0.1,90.34,90.283,3.69383402]
[1772620800725,4.22196515,90.339,90.283,3.69383402]
[1772620800923,4.22196515,90.339,90.288,4.23494251]
[1772620800924,11.0694163,90.339,90.288,4.23494251]
[1772620801422,15.29138145,90.339,90.288,4.23494251]
[1772620801632,4.22196515,90.338,90.288,4.23494251]
[1772620802244,4.22196515,90.336,90.293,4.23494251]
[1772620802621,4.22196515,90.336,90.289,11.0755463]
[1772620803045,4.22196515,90.336,90.29,4.23494251]
[1772620803548,4.22196515,90.348,90.306,4.51926565]
[1772620804238,0.1,90.36,90.309,4.23494251]
[1772620804444,11.16684373,90.36,90.311,4.23494251]
[1772620804739,4.22196515,90.359,90.311,4.23494251]
[1772620806345,11.06708869,90.358,90.312,38.75453981]
[1772620806545,4.22196515,90.357,90.313,4.23494251]
[1772620808742,4.22196515,90.357,90.3,3.69383402]
[1772620808743,4.22196515,90.357,90.315,4.23494251]
[1772620809128,4.22196515,90.355,90.315,4.23494251]
[1772620809649,4.22196515,90.377,90.329,4.23494251]
[1772620809834,4.22196515,90.377,90.337,0.14216157]
[1772620810033,11.06389534,90.385,90.338,4.23494251]
[1772620810236,4.22196515,90.408,90.338,4.23494251]
[1772620810435,4.22196515,90.408,90.349,4.23494251]
[1772620810436,4.22196515,90.407,90.349,4.23494251]
[1772620810954,4.22196515,90.405,90.351,4.23494251]
[1772620811361,0.1,90.42,90.358,4.82477569]
[1772620811532,0.1,90.42,90.354,4.82477569]
[1772620811533,4.22196515,90.418,90.37,4.23494251]
[1772620811848,4.22196515,90.419,90.379,4.23494251]
[1772620812052,4.22196515,90.418,90.379,4.23494251]
[1772620813151,4.22196515,90.416,90.381,4.23494251]
[1772620813458,0.1,90.42,90.381,4.23494251]
[1772620813852,4.22196515,90.418,90.381,4.23494251]
[1772620814443,4.22196515,90.418,90.377,3.69383402]
[1772620815143,4.22196515,90.416,90.379,4.23494251]
[1772620815530,0.1,90.42,90.382,9.34404134]
[1772620815758,4.22196515,90.425,90.389,4.23494251]
[1772620816744,4.22196515,90.423,90.379,4.23494251]
[1772620817252,4.22196515,90.435,90.388,4.23494251]
[1772620817644,3.69383402,90.481,90.387,3.69383402]
[1772620817645,4.22196515,90.444,90.396,4.23494251]
[1772620817858,4.22196515,90.444,90.399,4.23494251]
[1772620818049,11.05576801,90.451,90.399,4.23494251]
[1772620818256,4.11514516,90.45,90.399,4.23494251]
[1772620819254,4.11514516,90.448,90.401,4.09039613]
[1772620820555,4.11514516,90.467,90.404,5.10909883]
[1772620820733,4.3994683,90.459,90.402,11.06170217]
[1772620821159,4.3994683,90.459,90.402,15.1520983]
[1772620821352,4.11514516,90.449,90.402,15.1520983]
[1772620821550,4.11514516,90.449,90.402,4.09039613]
[1772620821739,4.11514516,90.449,90.402,15.1520983]
[1772620822062,4.20105298,90.447,90.388,4.29497237]
[1772620822357,4.20105298,90.429,90.379,15.35948956]
[1772620822558,38.70482593,90.428,90.379,15.35948956]
[1772620822769,11.05790907,90.434,90.382,3.69383402]
[1772620823064,11.05790907,90.434,90.379,38.72581018]
[1772620823065,4.20105298,90.436,90.387,4.57929551]
[1772620823443,4.20105298,90.434,90.387,4.29497237]
[1772620824652,4.20105298,90.432,90.378,4.29497237]
[1772620824954,4.20105298,90.432,90.344,1.10688036]
[1772620824955,4.20105298,90.429,90.368,4.29497237]
[1772620827176,4.20105298,90.427,90.37,4.29497237]
[1772620828566,4.20105298,90.427,90.369,38.73009549]
[1772620828567,4.20105298,90.425,90.372,4.29497237]
[1772620830461,4.20105298,90.423,90.374,4.29497237]
[1772620831570,4.20105298,90.423,90.375,62.4]
[1772620832755,4.20105298,90.421,90.376,11.06488448]
[1772620833464,4.20105298,90.421,90.365,4.29497237]
[1772620833657,2.19181885,90.41,90.356,4.29497237]
[1772620833855,4.20105298,90.409,90.356,4.29497237]
[1772620834867,2.19181885,90.42,90.356,4.29497237]
[1772620834868,4.20105298,90.407,90.356,4.29497237]
[1772620835850,4.20105298,90.405,90.358,4.29497237]
[1772620836464,4.20105298,90.405,90.34,3.69383402]
[1772620836465,4.20105298,90.379,90.339,35.15899266]
[1772620837370,4.20105298,90.379,90.34,4.29497237]
[1772620837566,4.48537612,90.405,90.34,4.29497237]
[1772620837982,94.02030837,90.406,90.342,4.29497237]
[1772620837983,4.48537612,90.403,90.342,4.29497237]
[1772620838272,4.20105298,90.403,90.349,4.29497237]
[1772620839471,4.20105298,90.403,90.341,38.74209937]
[1772620839472,4.20105298,90.389,90.341,15.36414362]
[1772620839769,4.20105298,90.389,90.342,4.29497237]
[1772620840153,4.20105298,90.387,90.342,4.29497237]
[1772620841556,4.20105298,90.383,90.342,4.29497237]
[1772620842447,4.20105298,90.381,90.342,4.29497237]
[1772620843191,4.20105298,90.379,90.339,24.08959493]
[1772620843756,4.20105298,90.377,90.339,24.08959493]
[1772620843981,4.20105298,90.369,90.339,20.00988874]
[1772620844549,2.19181885,90.36,90.315,4.29497237]
[1772620844754,4.15904245,90.359,90.315,4.29497237]
[1772620845175,4.15904245,90.349,90.315,4.29497237]
[1772620846574,4.15904245,90.347,90.315,4.29497237]
[1772620847887,11.06855865,90.346,90.315,4.29497237]
[1772620849769,11.06855865,90.346,90.317,4.22018966]
[1772620850368,11.06716742,90.358,90.317,4.22018966]
[1772620850580,4.07632261,90.371,90.319,4.22018966]
[1772620850886,38.7288098,90.372,90.319,4.22018966]
[1772620851686,4.07632261,90.371,90.321,4.22018966]
[1772620853077,4.07632261,90.363,90.313,4.22018966]
[1772620853269,4.07632261,90.363,90.315,4.22018966]
[1772620853771,4.07632261,90.361,90.315,4.22018966]
[1772620854581,11.06525178,90.373,90.319,4.22018966]
[1772620854777,4.07632261,90.372,90.319,4.22018966]
[1772620855485,4.07632261,90.362,90.319,4.22018966]
[1772620855862,2.19181885,90.37,90.319,4.22018966]
[1772620855863,4.07632261,90.36,90.319,4.22018966]
[1772620856075,38.73352441,90.361,90.294,4.22018966]
[1772620856076,4.07632261,90.339,90.294,4.22018966]
[1772620858200,11.06953884,90.338,90.295,11.07481034]
[1772620858391,11.06953884,90.338,90.296,4.22018966]
[1772620859298,11.06953884,90.338,90.292,4.22018966]
[1772620859299,4.07632261,90.337,90.292,4.22018966]
[1772620860391,4.07632261,90.335,90.292,4.22018966]
[1772620860573,4.07632261,90.335,90.293,4.22018966]
[1772620861474,4.07632261,90.335,90.287,18.18542381]
[1772620861475,4.07632261,90.333,90.295,4.22018966]
[1772620861869,11.070029,90.334,90.295,4.22018966]
[1772620862070,11.06855865,90.346,90.295,4.22018966]
[1772620862879,4.07632261,90.345,90.295,4.22018966]
[1772620863471,11.06782362,90.352,90.3,4.22018966]
[1772620865892,11.06519681,90.374,90.318,4.22018966]
[1772620866095,11.06329309,90.389,90.329,4.22018966]
[1772620866387,11.06329309,90.389,90.301,94.12963311]
[1772620866388,4.07632261,90.388,90.338,4.22018966]
[1772620866586,4.07632261,90.388,90.302,1.10739518]
[1772620866587,4.07632261,90.388,90.318,4.22018966]
[1772620866888,11.06329309,90.389,90.318,4.22018966]
[1772620866889,0.28432314,90.387,90.318,4.22018966]
[1772620867084,4.07632261,90.384,90.323,4.5045128]
[1772620868180,4.07632261,90.382,90.328,4.5045128]
[1772620868380,4.07632261,90.382,90.328,4.22018966]
[1772620869482,38.72409633,90.383,90.328,4.22018966]
[1772620869483,4.07632261,90.372,90.328,4.22018966]
[1772620870395,4.07632261,90.37,90.329,15.29083142]
[1772620870598,4.07632261,90.359,90.315,11.07235785]
[1772620871500,2.19418728,90.36,90.315,11.07235785]
[1772620871501,38.73481041,90.358,90.315,11.07235785]
[1772620871698,4.07632261,90.357,90.315,11.07235785]
[1772620872215,4.07632261,90.349,90.293,4.22018966]
[1772620872578,4.07632261,90.329,90.284,4.22018966]
[1772620873080,4.07632261,90.329,90.286,11.07579937]
[1772620874097,4.07632261,90.327,90.286,11.07579937]
[1772620874404,4.07632261,90.327,90.29,4.42018966]
[1772620874902,4.07632261,90.327,90.29,0.2]
[1772620875483,4.07632261,90.327,90.29,4.42018966]
[1772620876215,11.07100945,90.326,90.29,4.42018966]
[1772620876516,4.07632261,90.332,90.292,4.22018966]
[1772620877009,4.07632261,90.329,90.292,4.22018966]
[1772620877309,4.07632261,90.329,90.29,0.2]
[1772620877507,4.07632261,90.329,90.291,4.22018966]
[1772620878307,4.15904245,90.327,90.291,4.22018966]
[1772620879597,4.15904245,90.323,90.29,0.2]
[1772620880299,4.15904245,90.323,90.291,15.14891352]
[1772620880300,11.07149974,90.322,90.291,15.14891352]
[1772620880503,11.07149974,90.322,90.292,4.07361255]
[1772620881003,53.48527545,90.381,90.292,4.07361255]
[1772620881004,4.15904245,90.332,90.292,4.07361255]
[1772620881514,38.74295707,90.339,90.292,4.07361255]
[1772620881515,4.15904245,90.338,90.292,4.07361255]
[1772620882111,11.0694163,90.339,90.292,4.07361255]
[1772620882403,11.06868116,90.345,90.293,38.76269478]
[1772620882611,4.15904245,90.363,90.297,4.41451946]
[1772620884599,4.15904245,90.361,90.299,4.13019632]
[1772620886791,11.06684373,90.36,90.3,38.75968992]
[1772620886994,11.06684373,90.36,90.301,4.13019632]
[1772620887798,11.06684373,90.36,90.303,3.69383402]
[1772620888002,11.06684373,90.36,90.304,4.41451946]
[1772620889512,4.15904245,90.363,90.309,4.13019632]
[1772620891514,5.04403314,90.38,90.3,55.3709856]
[1772620891515,4.15904245,90.361,90.311,4.13019632]
[1772620893596,4.15904245,90.359,90.313,4.13019632]
[1772620894597,4.15904245,90.349,90.304,4.13019632]
[1772620894797,4.15904245,90.339,90.291,4.13019632]
[1772620895906,4.15904245,90.337,90.294,4.13019632]
[1772620898016,4.15904245,90.335,90.296,4.13019632]
[1772620898609,4.15904245,90.329,90.286,4.13019632]
[1772620898808,4.15904245,90.319,90.286,4.13019632]
[1772620899915,4.15904245,90.317,90.286,4.13019632]
[1772620900699,4.15904245,90.317,90.285,11.07600107]
[1772620900906,4.15904245,90.317,90.289,4.13019632]
[1772620901100,4.15904245,90.317,90.282,4.13019632]
[1772620901502,4.15904245,90.317,90.286,11.0758088]
[1772620901707,4.15904245,90.317,90.282,4.13019632]
[1772620901897,4.15904245,90.315,90.282,4.13019632]
[1772620902712,4.15904245,90.315,90.267,62.4]
[1772620902713,4.15904245,90.315,90.288,8.35623265]
[1772620902917,4.15904245,90.309,90.267,66.53019632]
[1772620903119,4.15904245,90.309,90.264,11.07851242]
[1772620903319,4.15904245,90.309,90.264,15.20870874]
[1772620903497,4.15904245,90.309,90.264,11.07851242]
[1772620903695,4.15904245,90.309,90.265,4.13019632]
[1772620904218,4.15904245,90.307,90.267,4.13019632]
[1772620904812,4.15904245,90.303,90.267,4.13019632]
[1772620905002,4.15904245,90.299,90.259,4.13019632]
[1772620905315,4.15904245,90.299,90.223,4.82477569]
[1772620905316,2.19567753,90.28,90.244,4.13019632]
[1772620905522,4.15904245,90.279,90.234,4.13019632]
[1772620905712,4.15904245,90.269,90.234,4.13019632]
[1772620906223,11.07812292,90.268,90.234,4.13019632]
[1772620906827,4.15904245,90.267,90.235,11.08217432]
[1772620907012,4.15904245,90.267,90.236,4.13019632]
[1772620907713,4.15904245,90.267,90.235,11.08217432]
[1772620908023,4.15904245,90.265,90.227,4.13019632]
[1772620910627,11.07861384,90.264,90.229,4.2752646]
[1772620911425,15.23765629,90.264,90.229,4.2752646]
[1772620913025,15.23765629,90.264,90.224,49.8]
[1772620913026,15.23765629,90.264,90.231,4.2752646]
[1772620915026,15.23765629,90.264,90.232,11.08254277]
[1772620915208,15.23765629,90.264,90.233,4.2752646]
[1772620915526,4.15904245,90.263,90.233,4.2752646]
[1772620916313,4.15904245,90.263,90.227,11.08313985]
[1772620916512,4.15904245,90.261,90.228,4.2752646]
[1772620917330,4.15904245,90.266,90.228,4.2752646]
[1772620918416,4.15904245,90.266,90.224,49.8]
[1772620918618,4.15904245,90.264,90.226,4.2752646]
[1772620920310,4.15904245,90.259,90.212,4.2752646]
[1772620920709,4.15904245,90.257,90.227,4.2752646]
[1772620921816,4.15904245,90.257,90.22,4.2752646]
[1772620922729,38.77772606,90.258,90.211,11.08504456]
[1772620922730,4.15904245,90.249,90.213,4.2752646]
[1772620922908,4.15904245,90.245,90.205,4.2752646]
[1772620923113,38.779015,90.255,90.198,4.2752646]
[1772620923114,4.15904245,90.239,90.198,4.2752646]
[1772620923934,4.15904245,90.239,90.2,11.28647239]
[1772620924317,4.15904245,90.239,90.204,4.2752646]
[1772620925036,4.15904245,90.237,90.21,4.4752646]
[1772620926039,4.15904245,90.237,90.203,4.2752646]
[1772620926330,4.15904245,90.237,90.2,4.4752646]
[1772620926911,38.78632061,90.238,90.2,1e-08]
[1772620926912,4.15904245,90.219,90.2,1e-08]
[1772620929018,11.08426256,90.218,90.2,1e-08]
[1772620931138,0.28432314,90.235,90.201,4.2752646]
[1772620931341,11.0820515,90.236,90.203,4.2752646]
[1772620931645,11.0803324,90.25,90.203,4.2752646]
[1772620931843,4.15904245,90.249,90.203,4.2752646]
[1772620932024,4.15904245,90.243,90.203,4.2752646]
[1772620932850,4.15904245,90.243,90.2,11.08637021]
[1772620933137,4.15904245,90.241,90.2,1e-08]
[1772620933727,38.78460139,90.242,90.2,1e-08]
[1772620933728,11.08131468,90.242,90.2,1e-08]
[1772620935228,4.15904245,90.242,90.2,1e-08]
[1772620935433,4.44336559,90.248,90.2,1e-08]
[1772620936436,4.44336559,90.246,90.2,4.27526461]
[1772620938043,4.44336559,90.244,90.202,4.2752646]
[1772620938243,11.08094631,90.245,90.202,4.2752646]
[1772620938843,4.15904245,90.219,90.177,4.3238446]
[1772620939562,4.15904245,90.229,90.177,4.3238446]
[1772620940342,4.15904245,90.227,90.179,4.3238446]
[1772620942458,4.15904245,90.227,90.169,27.72571504]
[1772620942459,4.15904245,90.225,90.181,4.2814353]
[1772620943542,4.15904245,90.246,90.187,4.2814353]
[1772620943741,1.88670775,90.26,90.189,4.2814353]
[1772620943946,4.15904245,90.259,90.189,4.2814353]
[1772620944153,4.15904245,90.253,90.189,4.2814353]
[1772620944353,4.15904245,90.251,90.191,4.2814353]
[1772620945258,38.78030402,90.252,90.19,101.20696307]
[1772620945259,11.08008686,90.252,90.198,4.2814353]
[1772620945556,4.15904245,90.251,90.198,4.2814353]
[1772620946352,4.15904245,90.249,90.2,4.2814353]
[1772620946558,11.0803324,90.25,90.2,4.2814353]
[1772620946961,11.07945351,90.258,90.207,4.56575844]
[1772620948166,38.77199971,90.272,90.219,4.2814353]
[1772620948381,11.07704898,90.277,90.222,5.10909883]
[1772620948566,11.07704898,90.277,90.229,4.2814353]
[1772620948876,4.15904245,90.276,90.229,4.2814353]
[1772620949678,4.44336559,90.309,90.231,4.2814353]
[1772620949987,4.15904245,90.308,90.231,4.2814353]
[1772620950559,0.28432314,90.301,90.231,4.2814353]
[1772620950764,4.15904245,90.292,90.231,4.2814353]
[1772620950963,4.15904245,90.29,90.233,4.2814353]
[1772620951987,4.15904245,90.308,90.24,4.2814353]
[1772620952169,4.15904245,90.308,90.259,4.2814353]
[1772620952779,11.07309349,90.309,90.259,4.2814353]
[1772620952967,4.15904245,90.332,90.269,4.2814353]
[1772620953173,4.15904245,90.331,90.269,4.2814353]
[1772620954170,4.15904245,90.329,90.271,4.2814353]
[1772620955586,4.15904245,90.303,90.261,4.2814353]
[1772620955886,4.15904245,90.299,90.253,4.2814353]
[1772620956086,4.15904245,90.287,90.237,4.2814353]
[1772620957475,4.15904245,90.285,90.239,4.2814353]
[1772620958072,4.15904245,90.295,90.239,4.2814353]
[1772620958276,4.15904245,90.313,90.246,4.42359687]
[1772620958471,5.04302645,90.29,90.248,4.2814353]
[1772620958680,4.15904245,90.289,90.248,4.2814353]
[1772620959285,4.15904245,90.287,90.248,4.2814353]
[1772620960078,4.15904245,90.287,90.249,15.36189048]
[1772620960394,4.15904245,90.287,90.25,4.2814353]
[1772620961677,5.04302645,90.3,90.25,4.2814353]
[1772620961678,4.15904245,90.285,90.25,4.2814353]
[1772620963396,4.15904245,90.283,90.25,4.2814353]
[1772620965103,4.15904245,90.283,90.252,4.2814353]
[1772620965896,11.07640504,90.282,90.252,4.2814353]
[1772620966198,4.15904245,90.281,90.252,4.2814353]
[1772620968297,11.07665042,90.28,90.252,4.2814353]
[1772620968499,11.07665042,90.28,90.253,4.27390527]
[1772620968801,4.15904245,90.279,90.247,11.08067136]
[1772620968996,4.15904245,90.279,90.247,15.35457663]
[1772620969177,4.15904245,90.279,90.248,4.27390527]
[1772620970119,11.07689581,90.278,90.25,4.27390527]
[1772620970412,4.15904245,90.277,90.25,4.27390527]
[1772620971788,11.07689581,90.278,90.25,4.27390527]
[1772620971988,15.23507944,90.285,90.252,4.27390527]
[1772620972204,11.07603699,90.285,90.252,4.27390527]
[1772620972404,4.15904245,90.284,90.252,4.27390527]
[1772620973215,4.15904245,90.284,90.238,62.4]
[1772620973216,38.76011914,90.299,90.254,4.27390527]
[1772620973417,11.07431975,90.299,90.254,4.27390527]
[1772620973713,4.15904245,90.307,90.253,11.0799641]
[1772620973714,11.07380719,90.304,90.258,4.27390527]
[1772620975423,11.07380719,90.304,90.256,3.69383402]
[1772620975424,4.15904245,90.309,90.26,4.27390527]
[1772620978309,38.75625636,90.308,90.261,11.07898206]
[1772620978505,4.15904245,90.307,90.262,4.27390527]
[1772620980534,11.07346134,90.306,90.263,38.77557803]
[1772620980833,15.23250379,90.306,90.264,4.27390527]
[1772620981008,11.07211266,90.317,90.264,4.27390527]
[1772620981315,11.07211266,90.317,90.267,4.55822841]
[1772620981726,15.23115511,90.317,90.267,4.55822841]
[1772620982124,4.15904245,90.316,90.267,4.55822841]
[1772620982423,11.07235785,90.315,90.268,38.77343022]
[1772620982612,4.15904245,90.314,90.269,4.27390527]
[1772620983120,11.07235785,90.315,90.269,4.27390527]
[1772620983620,4.15904245,90.319,90.271,4.27390527]
[1772620985430,4.15904245,90.319,90.254,62.4]
[1772620985431,4.15904245,90.311,90.273,4.27390527]
[1772620986511,11.07272566,90.312,90.273,4.27390527]